[Event "Chessable Masters - Torneo preliminare"]
[White "Giri, Anish"]
[Black "Anton Guijarro, David"]
[WhiteFideId "24116068"]
[BlackFideId "2285525"]
[WhiteElo "2714"]
[BlackElo "2635"]
[Result "1-0"]
[Round "4"]
[TimeControl "600+2"]
[Date "2023.03.13"]
[WhiteClock "0:00:08"]
[BlackClock "0:00:07"]

1. e4 {[%clk 0:09:57]}  c6 {[%clk 0:10:00]} 2. d4 {[%clk 0:09:55]}  d5 {[%clk 0:10:01]} 3. e5 {[%clk 0:09:56]}  Bf5 {[%clk 0:10:01]} 4. Nf3 {[%clk 0:09:57]}  e6 {[%clk 0:10:02]} 5. Be2 {[%clk 0:09:57]}  c5 {[%clk 0:10:00]} 6. O-O {[%clk 0:09:48]}  Nc6 {[%clk 0:09:59]} 7. c3 {[%clk 0:09:49]}  Bg4 {[%clk 0:09:49]} 8. Nbd2 {[%clk 0:09:16]}  cxd4 {[%clk 0:09:44]} 9. cxd4 {[%clk 0:09:09]}  a5 {[%clk 0:09:38]} 10. h3 {[%clk 0:09:01]}  Bh5 {[%clk 0:09:37]} 11. Nb1 {[%clk 0:08:56]}  Nge7 {[%clk 0:09:08]} 12. Nc3 {[%clk 0:08:54]}  Bxf3 {[%clk 0:09:08]} 13. Bxf3 {[%clk 0:08:53]}  Nf5 {[%clk 0:09:09]} 14. Be3 {[%clk 0:08:14]}  Be7 {[%clk 0:08:17]} 15. Bg4 {[%clk 0:08:03]}  Nxe3 {[%clk 0:08:16]} 16. fxe3 {[%clk 0:08:05]}  O-O {[%clk 0:08:13]} 17. a3 {[%clk 0:07:56]}  Bg5 {[%clk 0:08:03]} 18. Qd3 {[%clk 0:07:39]}  a4 {[%clk 0:07:40]} 19. Bd1 {[%clk 0:07:30]}  Na5 {[%clk 0:06:03]} 20. e4 {[%clk 0:07:24]}  dxe4 {[%clk 0:04:57]} 21. Nxe4 {[%clk 0:06:50]}  Nc6 {[%clk 0:04:48]} 22. Kh1 {[%clk 0:06:17]}  Be7 {[%clk 0:04:30]} 23. Bc2 {[%clk 0:05:37]}  g6 {[%clk 0:04:31]} 24. Rad1 {[%clk 0:05:20]}  Qb6 {[%clk 0:04:18]} 25. Nf6+ {[%clk 0:04:45]}  Bxf6 {[%clk 0:03:55]} 26. exf6 {[%clk 0:04:46]}  Ra5 {[%clk 0:03:05]} 27. Qe3 {[%clk 0:04:42]}  Rh5 {[%clk 0:03:05]} 28. g4 {[%clk 0:03:40]}  Rh4 {[%clk 0:03:00]} 29. Qg5 {[%clk 0:02:53]}  Rxh3+ {[%clk 0:02:16]} 30. Kg2 {[%clk 0:02:53]}  h6 {[%clk 0:02:03]} 31. Qf4 {[%clk 0:01:39]}  e5 {[%clk 0:01:20]} 32. Qe4 {[%clk 0:01:11]}  Rb3 {[%clk 0:00:42]} 33. Bxb3 {[%clk 0:01:08]}  Qxb3 {[%clk 0:00:43]} 34. d5 {[%clk 0:00:53]}  Nd4 {[%clk 0:00:32]} 35. Rd2 {[%clk 0:00:54]}  Re8 {[%clk 0:00:21]} 36. Re1 {[%clk 0:00:24]}  Nb5 {[%clk 0:00:19]} 37. d6 {[%clk 0:00:15]}  Qe6 {[%clk 0:00:16]} 38. Qxe5 {[%clk 0:00:04]}  Qxg4+ {[%clk 0:00:10]} 39. Qg3 {[%clk 0:00:06]}  Qd7 {[%clk 0:00:05]} 40. Rxe8+ {[%clk 0:00:06]}  Qxe8 {[%clk 0:00:07]} 41. d7 {[%clk 0:00:07]}  Qd8 {[%clk 0:00:07]} 42. Qe5 {[%clk 0:00:08]} 1-0


[Site "Internet"]

[Event "Chessable Masters - Torneo preliminare"]
[White "Kravtsiv, Martyn"]
[Black "Sevian, Samuel"]
[WhiteFideId "14113147"]
[BlackFideId "2040506"]
[WhiteElo "2675"]
[BlackElo "2582"]
[Result "0-1"]
[Round "4"]
[TimeControl "600+2"]
[Date "2023.03.13"]
[WhiteClock "0:00:06"]
[BlackClock "0:03:29"]

1. e4 {[%clk 0:10:01]}  e5 {[%clk 0:10:00]} 2. Nf3 {[%clk 0:10:01]}  Nc6 {[%clk 0:10:01]} 3. Nc3 {[%clk 0:10:01]}  Nf6 {[%clk 0:10:01]} 4. a4 {[%clk 0:10:02]}  d6 {[%clk 0:09:17]} 5. d4 {[%clk 0:09:55]}  Bg4 {[%clk 0:09:14]} 6. Bb5 {[%clk 0:09:07]}  Bxf3 {[%clk 0:08:59]} 7. gxf3 {[%clk 0:09:05]}  a6 {[%clk 0:08:53]} 8. Bxc6+ {[%clk 0:08:41]}  bxc6 {[%clk 0:08:54]} 9. Be3 {[%clk 0:07:15]}  Nd7 {[%clk 0:08:52]} 10. Qe2 {[%clk 0:06:09]}  Qb8 {[%clk 0:08:10]} 11. O-O {[%clk 0:04:57]}  Qb4 {[%clk 0:07:33]} 12. Rfd1 {[%clk 0:04:23]}  Be7 {[%clk 0:07:32]} 13. Ra3 {[%clk 0:04:13]}  exd4 {[%clk 0:07:01]} 14. Bxd4 {[%clk 0:03:19]}  O-O {[%clk 0:06:52]} 15. a5 {[%clk 0:02:07]}  Bf6 {[%clk 0:06:37]} 16. Ra4 {[%clk 0:02:07]}  Qb7 {[%clk 0:06:30]} 17. b3 {[%clk 0:02:05]}  Rfe8 {[%clk 0:06:28]} 18. Kh1 {[%clk 0:01:49]}  Bxd4 {[%clk 0:05:54]} 19. Rdxd4 {[%clk 0:01:40]}  Nc5 {[%clk 0:05:51]} 20. Rab4 {[%clk 0:01:31]}  Qc8 {[%clk 0:05:52]} 21. Rd1 {[%clk 0:01:31]}  Qh3 {[%clk 0:05:47]} 22. Rg1 {[%clk 0:01:30]}  Ne6 {[%clk 0:05:45]} 23. Qe3 {[%clk 0:01:11]}  Qh5 {[%clk 0:05:20]} 24. Rc4 {[%clk 0:01:01]}  d5 {[%clk 0:05:12]} 25. Rxc6 {[%clk 0:00:17]}  d4 {[%clk 0:05:12]} 26. Nd5 {[%clk 0:00:18]}  dxe3 {[%clk 0:03:41]} 27. Nf6+ {[%clk 0:00:18]}  Kf8 {[%clk 0:03:41]} 28. Nxh5 {[%clk 0:00:20]}  e2 {[%clk 0:03:43]} 29. Re1 {[%clk 0:00:15]}  Rad8 {[%clk 0:03:44]} 30. Rxe2 {[%clk 0:00:06]}  Rd1+ {[%clk 0:03:45]} 31. Kg2 {[%clk 0:00:07]}  g6 {[%clk 0:03:46]} 32. Rxe6 {[%clk 0:00:06]}  Rxe6 {[%clk 0:03:48]} 33. Nf4 {[%clk 0:00:08]}  Re5 {[%clk 0:03:49]} 34. Nd5 {[%clk 0:00:08]}  Rg5+ {[%clk 0:03:49]} 35. Kh3 {[%clk 0:00:08]}  Rdg1 {[%clk 0:03:50]} 36. Nf4 {[%clk 0:00:09]}  Rxa5 {[%clk 0:03:50]} 37. Rd2 {[%clk 0:00:09]}  Ke8 {[%clk 0:03:35]} 38. Nd5 {[%clk 0:00:09]}  c6 {[%clk 0:03:33]} 39. b4 {[%clk 0:00:10]}  Ra3 {[%clk 0:03:30]} 40. Nf6+ {[%clk 0:00:06]}  Ke7 {[%clk 0:03:29]} 0-1


[Site "Internet"]

[Event "Chessable Masters - Torneo preliminare"]
[White "Iturrizaga Bonelli, Eduardo"]
[Black "Nguyen, Ngoc Truong Son"]
[WhiteFideId "3901211"]
[BlackFideId "12401110"]
[WhiteElo "2654"]
[BlackElo "2585"]
[Result "0-1"]
[Round "4"]
[TimeControl "600+2"]
[Date "2023.03.13"]
[WhiteClock "0:00:18"]
[BlackClock "0:00:59"]

1. c4 {[%clk 0:10:01]}  Nf6 {[%clk 0:09:53]} 2. g3 {[%clk 0:10:01]}  g6 {[%clk 0:09:51]} 3. Bg2 {[%clk 0:10:02]}  Bg7 {[%clk 0:09:52]} 4. Nc3 {[%clk 0:10:03]}  O-O {[%clk 0:09:53]} 5. d4 {[%clk 0:10:04]}  d6 {[%clk 0:09:53]} 6. Nf3 {[%clk 0:09:59]}  Nc6 {[%clk 0:09:49]} 7. O-O {[%clk 0:09:59]}  e5 {[%clk 0:09:50]} 8. dxe5 {[%clk 0:09:53]}  dxe5 {[%clk 0:09:42]} 9. Bg5 {[%clk 0:09:53]}  Be6 {[%clk 0:09:22]} 10. Qa4 {[%clk 0:09:43]}  Qc8 {[%clk 0:08:11]} 11. Rfd1 {[%clk 0:09:17]}  Nd7 {[%clk 0:07:54]} 12. Nd5 {[%clk 0:09:02]}  Re8 {[%clk 0:06:46]} 13. Qa3 {[%clk 0:08:08]}  h6 {[%clk 0:05:47]} 14. Bd2 {[%clk 0:06:44]}  Nb6 {[%clk 0:05:11]} 15. Rac1 {[%clk 0:04:51]}  Nxd5 {[%clk 0:04:51]} 16. cxd5 {[%clk 0:04:52]}  Bxd5 {[%clk 0:04:53]} 17. Be3 {[%clk 0:04:54]}  Rd8 {[%clk 0:04:05]} 18. Qa4 {[%clk 0:04:34]}  Qe6 {[%clk 0:03:54]} 19. Qb5 {[%clk 0:04:17]}  e4 {[%clk 0:03:20]} 20. Nd4 {[%clk 0:03:57]}  Nxd4 {[%clk 0:02:54]} 21. Bxd4 {[%clk 0:03:59]}  Bc6 {[%clk 0:02:54]} 22. Qb4 {[%clk 0:03:52]}  Qd6 {[%clk 0:02:31]} 23. Qxd6 {[%clk 0:02:23]}  Rxd6 {[%clk 0:02:33]} 24. Bxg7 {[%clk 0:02:13]}  Kxg7 {[%clk 0:02:34]} 25. Rxd6 {[%clk 0:02:11]}  cxd6 {[%clk 0:02:36]} 26. f3 {[%clk 0:01:31]}  d5 {[%clk 0:02:08]} 27. Kf2 {[%clk 0:01:26]}  exf3 {[%clk 0:01:46]} 28. Bxf3 {[%clk 0:01:27]}  Kf6 {[%clk 0:01:45]} 29. b4 {[%clk 0:01:11]}  a6 {[%clk 0:01:41]} 30. Ke3 {[%clk 0:01:00]}  Ke5 {[%clk 0:01:40]} 31. Kd2 {[%clk 0:01:01]}  a5 {[%clk 0:01:30]} 32. b5 {[%clk 0:00:52]}  Bxb5 {[%clk 0:01:31]} 33. Rc7 {[%clk 0:00:54]}  Bc4 {[%clk 0:01:32]} 34. a4 {[%clk 0:00:25]}  b5 {[%clk 0:01:08]} 35. axb5 {[%clk 0:00:26]}  Rb8 {[%clk 0:01:09]} 36. Rxf7 {[%clk 0:00:21]}  Rxb5 {[%clk 0:01:09]} 37. Ra7 {[%clk 0:00:19]}  Rb2+ {[%clk 0:01:09]} 38. Kc3 {[%clk 0:00:18]}  Rb3+ {[%clk 0:01:06]} 39. Kc2 {[%clk 0:00:19]}  Ra3 {[%clk 0:01:07]} 40. h4 {[%clk 0:00:19]}  a4 {[%clk 0:01:04]} 41. Kb2 {[%clk 0:00:18]}  Rb3+ {[%clk 0:01:00]} 42. Kc2 {[%clk 0:00:19]}  a3 {[%clk 0:01:01]} 43. Ra5 {[%clk 0:00:18]}  a2 {[%clk 0:00:59]} 0-1


[Site "Internet"]

[Event "Chessable Masters - Torneo preliminare"]
[White "Pichot, Alan"]
[Black "Kramnik, Vladimir"]
[WhiteFideId "110973"]
[BlackFideId "4101588"]
[WhiteElo "2549"]
[BlackElo "2756"]
[Result "1/2-1/2"]
[Round "4"]
[TimeControl "600+2"]
[Date "2023.03.13"]
[WhiteClock "0:00:07"]
[BlackClock "0:00:11"]

1. e4 {[%clk 0:10:01]}  e5 {[%clk 0:09:59]} 2. Nf3 {[%clk 0:10:02]}  Nc6 {[%clk 0:10:00]} 3. Bb5 {[%clk 0:10:02]}  a6 {[%clk 0:09:59]} 4. Ba4 {[%clk 0:10:01]}  Nf6 {[%clk 0:10:00]} 5. O-O {[%clk 0:10:02]}  Be7 {[%clk 0:10:00]} 6. Re1 {[%clk 0:10:00]}  b5 {[%clk 0:10:00]} 7. Bb3 {[%clk 0:10:01]}  O-O {[%clk 0:10:02]} 8. a4 {[%clk 0:09:57]}  b4 {[%clk 0:10:02]} 9. d3 {[%clk 0:09:42]}  d6 {[%clk 0:10:00]} 10. a5 {[%clk 0:09:28]}  Be6 {[%clk 0:10:00]} 11. Bxe6 {[%clk 0:09:23]}  fxe6 {[%clk 0:10:01]} 12. Nbd2 {[%clk 0:09:16]}  Qe8 {[%clk 0:09:32]} 13. c3 {[%clk 0:09:11]}  Nh5 {[%clk 0:09:08]} 14. Nf1 {[%clk 0:08:47]}  bxc3 {[%clk 0:08:46]} 15. bxc3 {[%clk 0:08:46]}  Rb8 {[%clk 0:08:46]} 16. d4 {[%clk 0:08:11]}  Rb5 {[%clk 0:08:19]} 17. Ng3 {[%clk 0:07:31]}  Nxg3 {[%clk 0:07:48]} 18. hxg3 {[%clk 0:07:30]}  Bf6 {[%clk 0:07:35]} 19. Be3 {[%clk 0:06:44]}  exd4 {[%clk 0:07:24]} 20. cxd4 {[%clk 0:06:32]}  Nxa5 {[%clk 0:07:20]} 21. Qc2 {[%clk 0:06:20]}  c5 {[%clk 0:06:56]} 22. e5 {[%clk 0:05:37]}  dxe5 {[%clk 0:06:54]} 23. dxe5 {[%clk 0:05:36]}  Be7 {[%clk 0:06:48]} 24. Bd2 {[%clk 0:05:01]}  Nc6 {[%clk 0:04:41]} 25. Qc4 {[%clk 0:04:11]}  Qc8 {[%clk 0:04:34]} 26. Rec1 {[%clk 0:03:38]}  Kh8 {[%clk 0:04:22]} 27. Rab1 {[%clk 0:03:06]}  Qb7 {[%clk 0:03:28]} 28. Rxb5 {[%clk 0:01:20]}  axb5 {[%clk 0:03:28]} 29. Qxe6 {[%clk 0:01:21]}  Rxf3 {[%clk 0:02:36]} 30. gxf3 {[%clk 0:01:22]}  Nd4 {[%clk 0:02:37]} 31. Qf7 {[%clk 0:01:23]}  Nxf3+ {[%clk 0:02:37]} 32. Kf1 {[%clk 0:01:24]}  Nxd2+ {[%clk 0:01:54]} 33. Ke2 {[%clk 0:01:25]}  h6 {[%clk 0:01:54]} 34. Qe8+ {[%clk 0:01:25]}  Kh7 {[%clk 0:01:55]} 35. Kxd2 {[%clk 0:01:26]}  b4 {[%clk 0:01:19]} 36. f4 {[%clk 0:01:00]}  b3 {[%clk 0:01:13]} 37. Qa4 {[%clk 0:01:00]}  Qg2+ {[%clk 0:00:57]} 38. Kc3 {[%clk 0:01:01]}  Qxg3+ {[%clk 0:00:44]} 39. Kb2 {[%clk 0:01:02]}  h5 {[%clk 0:00:31]} 40. Qe4+ {[%clk 0:00:53]}  Kh6 {[%clk 0:00:22]} 41. Ra1 {[%clk 0:00:44]}  c4 {[%clk 0:00:13]} 42. Ra8 {[%clk 0:00:11]}  Qf2+ {[%clk 0:00:09]} 43. Kc3 {[%clk 0:00:12]}  g6 {[%clk 0:00:09]} 44. Ra6 {[%clk 0:00:08]}  Qg1 {[%clk 0:00:06]} 45. f5 {[%clk 0:00:02]}  Qc1+ {[%clk 0:00:06]} 46. Kd4 {[%clk 0:00:03]}  Qd2+ {[%clk 0:00:05]} 47. Kxc4 {[%clk 0:00:05]}  Qc2+ {[%clk 0:00:06]} 48. Qxc2 {[%clk 0:00:06]}  bxc2 {[%clk 0:00:07]} 49. Rxg6+ {[%clk 0:00:07]}  Kh7 {[%clk 0:00:08]} 50. Rg1 {[%clk 0:00:08]}  Ba3 {[%clk 0:00:09]} 51. Kd3 {[%clk 0:00:05]}  c1=Q {[%clk 0:00:08]} 52. Rxc1 {[%clk 0:00:05]}  Bxc1 {[%clk 0:00:10]} 53. Ke2 {[%clk 0:00:07]}  Kg7 {[%clk 0:00:10]} 54. Kf1 {[%clk 0:00:07]}  Bb2 {[%clk 0:00:11]} 55. Kg1 {[%clk 0:00:07]}  Bxe5 {[%clk 0:00:11]} 1/2-1/2


[Site "Internet"]

[Event "Chessable Masters - Torneo preliminare"]
[White "Andreikin, Dmitry"]
[Black "Paravyan, David"]
[WhiteFideId "4158814"]
[BlackFideId "4194985"]
[WhiteElo "2628"]
[BlackElo "2598"]
[Result "0-1"]
[Round "4"]
[TimeControl "600+2"]
[Date "2023.03.13"]
[WhiteClock "0:00:18"]
[BlackClock "0:00:13"]

1. Nf3 {[%clk 0:10:01]}  Nf6 {[%clk 0:10:00]} 2. c4 {[%clk 0:10:00]}  c5 {[%clk 0:10:01]} 3. Nc3 {[%clk 0:09:51]}  Nc6 {[%clk 0:10:02]} 4. g3 {[%clk 0:09:52]}  d5 {[%clk 0:10:00]} 5. cxd5 {[%clk 0:09:52]}  Nxd5 {[%clk 0:10:02]} 6. Bg2 {[%clk 0:09:54]}  Nxc3 {[%clk 0:10:03]} 7. bxc3 {[%clk 0:09:53]}  e5 {[%clk 0:10:03]} 8. O-O {[%clk 0:09:51]}  Be7 {[%clk 0:10:05]} 9. d3 {[%clk 0:09:44]}  O-O {[%clk 0:10:06]} 10. Rb1 {[%clk 0:09:44]}  Qc7 {[%clk 0:09:50]} 11. Nd2 {[%clk 0:09:28]}  Rb8 {[%clk 0:09:50]} 12. c4 {[%clk 0:09:16]}  Bg4 {[%clk 0:09:36]} 13. Bb2 {[%clk 0:09:12]}  Nd4 {[%clk 0:09:34]} 14. Re1 {[%clk 0:08:41]}  Qd7 {[%clk 0:09:25]} 15. Bd5 {[%clk 0:08:29]}  b5 {[%clk 0:09:18]} 16. f3 {[%clk 0:07:59]}  Bf5 {[%clk 0:08:20]} 17. Ne4 {[%clk 0:07:49]}  Rb6 {[%clk 0:05:03]} 18. e3 {[%clk 0:06:54]}  Nc6 {[%clk 0:05:03]} 19. Nc3 {[%clk 0:06:55]}  bxc4 {[%clk 0:04:45]} 20. e4 {[%clk 0:06:54]}  Be6 {[%clk 0:04:40]} 21. dxc4 {[%clk 0:06:30]}  Nd4 {[%clk 0:04:41]} 22. Qd3 {[%clk 0:06:02]}  Rfb8 {[%clk 0:04:39]} 23. Ba3 {[%clk 0:06:03]}  Rxb1 {[%clk 0:03:56]} 24. Rxb1 {[%clk 0:06:05]}  Rxb1+ {[%clk 0:03:38]} 25. Qxb1 {[%clk 0:06:07]}  Qc8 {[%clk 0:03:04]} 26. Kg2 {[%clk 0:05:37]}  h5 {[%clk 0:02:46]} 27. Bc1 {[%clk 0:05:34]}  Bd8 {[%clk 0:02:25]} 28. Be3 {[%clk 0:05:26]}  Bb6 {[%clk 0:02:14]} 29. Qd1 {[%clk 0:04:19]}  Ba5 {[%clk 0:01:42]} 30. Bxe6 {[%clk 0:03:57]}  fxe6 {[%clk 0:01:33]} 31. Na4 {[%clk 0:03:48]}  Qc6 {[%clk 0:01:20]} 32. Nb2 {[%clk 0:03:43]}  Bc3 {[%clk 0:00:50]} 33. Nd3 {[%clk 0:03:22]}  Qa6 {[%clk 0:00:51]} 34. Bxd4 {[%clk 0:02:36]}  Bxd4 {[%clk 0:00:40]} 35. Qc2 {[%clk 0:02:36]}  Qa5 {[%clk 0:00:32]} 36. Kh3 {[%clk 0:02:36]}  Kh7 {[%clk 0:00:29]} 37. g4 {[%clk 0:02:19]}  hxg4+ {[%clk 0:00:27]} 38. fxg4 {[%clk 0:02:21]}  Qd8 {[%clk 0:00:25]} 39. Kg3 {[%clk 0:02:14]}  Be3 {[%clk 0:00:18]} 40. Qc3 {[%clk 0:01:25]}  Bg5 {[%clk 0:00:11]} 41. Kg2 {[%clk 0:01:19]}  Bf4 {[%clk 0:00:09]} 42. Nxe5 {[%clk 0:00:45]}  Qh4 {[%clk 0:00:10]} 43. h3 {[%clk 0:00:41]}  Qf6 {[%clk 0:00:11]} 44. Qf3 {[%clk 0:00:23]}  Bxe5 {[%clk 0:00:12]} 45. Qe3 {[%clk 0:00:18]}  Qf4 {[%clk 0:00:11]} 46. Qxf4 {[%clk 0:00:16]}  Bxf4 {[%clk 0:00:12]} 47. Kf3 {[%clk 0:00:18]}  Bg5 {[%clk 0:00:11]} 48. Kg3 {[%clk 0:00:19]}  Kg6 {[%clk 0:00:09]} 49. h4 {[%clk 0:00:21]}  Bf6 {[%clk 0:00:11]} 50. Kh3 {[%clk 0:00:21]}  Be7 {[%clk 0:00:10]} 51. e5 {[%clk 0:00:18]}  Bd8 {[%clk 0:00:09]} 52. Kg3 {[%clk 0:00:19]}  Kh6 {[%clk 0:00:11]} 53. a4 {[%clk 0:00:17]}  Kg6 {[%clk 0:00:12]} 54. Kh3 {[%clk 0:00:18]}  Bc7 {[%clk 0:00:13]} 0-1


[Site "Internet"]

[Event "Chessable Masters - Torneo preliminare"]
[White "Wei, Yi"]
[Black "Terry, Renato"]
[WhiteFideId "8603405"]
[BlackFideId "3803457"]
[WhiteElo "2716"]
[BlackElo "2472"]
[Result "1/2-1/2"]
[Round "4"]
[TimeControl "600+2"]
[Date "2023.03.13"]
[WhiteClock "0:00:09"]
[BlackClock "0:00:03"]

1. d4 {[%clk 0:09:51]}  d5 {[%clk 0:09:58]} 2. c4 {[%clk 0:09:52]}  dxc4 {[%clk 0:10:00]} 3. e4 {[%clk 0:09:51]}  e5 {[%clk 0:09:56]} 4. Nf3 {[%clk 0:09:50]}  exd4 {[%clk 0:09:57]} 5. Bxc4 {[%clk 0:09:50]}  Nc6 {[%clk 0:09:59]} 6. O-O {[%clk 0:09:40]}  Be6 {[%clk 0:09:59]} 7. Nbd2 {[%clk 0:09:32]}  Nf6 {[%clk 0:08:55]} 8. Qb3 {[%clk 0:06:41]}  Qd7 {[%clk 0:08:54]} 9. Ng5 {[%clk 0:06:39]}  Bxc4 {[%clk 0:08:50]} 10. Nxc4 {[%clk 0:06:39]}  Bc5 {[%clk 0:06:53]} 11. Bf4 {[%clk 0:03:54]}  O-O {[%clk 0:06:16]} 12. Qxb7 {[%clk 0:03:37]}  h6 {[%clk 0:06:00]} 13. Nf3 {[%clk 0:03:32]}  Nxe4 {[%clk 0:05:34]} 14. Rac1 {[%clk 0:03:08]}  Rfb8 {[%clk 0:04:26]} 15. Qxc7 {[%clk 0:03:06]}  Qxc7 {[%clk 0:04:25]} 16. Bxc7 {[%clk 0:03:07]}  Rc8 {[%clk 0:04:19]} 17. Bf4 {[%clk 0:02:20]}  Nb4 {[%clk 0:04:19]} 18. Rcd1 {[%clk 0:01:48]}  Nxa2 {[%clk 0:02:50]} 19. Nxd4 {[%clk 0:01:49]}  Nb4 {[%clk 0:02:42]} 20. Ne3 {[%clk 0:00:57]}  Re8 {[%clk 0:02:19]} 21. Nb3 {[%clk 0:00:50]}  Bb6 {[%clk 0:01:54]} 22. Nc4 {[%clk 0:00:48]}  Rad8 {[%clk 0:01:04]} 23. Nxb6 {[%clk 0:00:46]}  axb6 {[%clk 0:01:06]} 24. f3 {[%clk 0:00:18]}  Nf6 {[%clk 0:00:58]} 25. Nd4 {[%clk 0:00:09]}  Rd5 {[%clk 0:00:48]} 26. Nb3 {[%clk 0:00:04]}  Nd3 {[%clk 0:00:47]} 27. Bg3 {[%clk 0:00:04]}  Nxb2 {[%clk 0:00:45]} 28. Rxd5 {[%clk 0:00:05]}  Nxd5 {[%clk 0:00:47]} 29. Nd4 {[%clk 0:00:05]}  Nc3 {[%clk 0:00:38]} 30. Ra1 {[%clk 0:00:05]}  b5 {[%clk 0:00:27]} 31. h3 {[%clk 0:00:06]}  b4 {[%clk 0:00:26]} 32. Ra7 {[%clk 0:00:06]}  Rd8 {[%clk 0:00:20]} 33. Nc6 {[%clk 0:00:05]}  Rd2 {[%clk 0:00:18]} 34. Nxb4 {[%clk 0:00:05]}  Nc4 {[%clk 0:00:15]} 35. Bc7 {[%clk 0:00:05]}  Ne3 {[%clk 0:00:14]} 36. Bb6 {[%clk 0:00:05]}  Rxg2+ {[%clk 0:00:14]} 37. Kh1 {[%clk 0:00:06]}  Re2 {[%clk 0:00:15]} 38. Ra8+ {[%clk 0:00:03]}  Kh7 {[%clk 0:00:16]} 39. Bxe3 {[%clk 0:00:03]}  Rxe3 {[%clk 0:00:17]} 40. Ra3 {[%clk 0:00:03]}  Rxf3 {[%clk 0:00:13]} 41. Nd5 {[%clk 0:00:02]}  Rxh3+ {[%clk 0:00:11]} 42. Kg2 {[%clk 0:00:03]}  Nxd5 {[%clk 0:00:11]} 43. Kxh3 {[%clk 0:00:05]}  Kg6 {[%clk 0:00:12]} 44. Kh4 {[%clk 0:00:06]}  Nf6 {[%clk 0:00:09]} 45. Ra7 {[%clk 0:00:04]}  Nh7 {[%clk 0:00:10]} 46. Ra6+ {[%clk 0:00:05]}  f6 {[%clk 0:00:10]} 47. Kg4 {[%clk 0:00:06]}  Ng5 {[%clk 0:00:12]} 48. Kf4 {[%clk 0:00:07]}  h5 {[%clk 0:00:13]} 49. Rb6 {[%clk 0:00:08]}  Nf7 {[%clk 0:00:14]} 50. Ra6 {[%clk 0:00:08]}  Ne5 {[%clk 0:00:14]} 51. Rb6 {[%clk 0:00:09]}  Nd3+ {[%clk 0:00:12]} 52. Ke4 {[%clk 0:00:09]}  Nc5+ {[%clk 0:00:13]} 53. Kf4 {[%clk 0:00:09]}  Nd7 {[%clk 0:00:13]} 54. Ra6 {[%clk 0:00:08]}  Nf8 {[%clk 0:00:12]} 55. Rb6 {[%clk 0:00:08]}  Nh7 {[%clk 0:00:09]} 56. Ra6 {[%clk 0:00:07]}  Kh6 {[%clk 0:00:08]} 57. Ra7 {[%clk 0:00:05]}  g6 {[%clk 0:00:05]} 58. Rf7 {[%clk 0:00:06]}  f5 {[%clk 0:00:06]} 59. Ra7 {[%clk 0:00:04]}  h4 {[%clk 0:00:06]} 60. Ra8 {[%clk 0:00:05]}  Kg7 {[%clk 0:00:03]} 61. Ra7+ {[%clk 0:00:06]}  Kh6 {[%clk 0:00:05]} 62. Ra8 {[%clk 0:00:08]}  Kg7 {[%clk 0:00:03]} 63. Ra7+ {[%clk 0:00:09]}  Kh6 {[%clk 0:00:03]} 1/2-1/2


[Site "Internet"]

[Event "Chessable Masters - Torneo preliminare"]
[White "Mamedyarov, Shakhriyar"]
[Black "Narayanan, Srinath"]
[WhiteFideId "13401319"]
[BlackFideId "5018420"]
[WhiteElo "2703"]
[BlackElo "2482"]
[Result "1/2-1/2"]
[Round "4"]
[TimeControl "600+2"]
[Date "2023.03.13"]
[WhiteClock "0:00:41"]
[BlackClock "0:00:19"]

1. d4 {[%clk 0:10:01]}  d5 {[%clk 0:10:00]} 2. c4 {[%clk 0:10:02]}  dxc4 {[%clk 0:10:02]} 3. Nf3 {[%clk 0:10:03]}  Nf6 {[%clk 0:10:01]} 4. e3 {[%clk 0:10:03]}  e6 {[%clk 0:10:02]} 5. Bxc4 {[%clk 0:10:04]}  c5 {[%clk 0:10:01]} 6. O-O {[%clk 0:10:06]}  a6 {[%clk 0:10:02]} 7. b3 {[%clk 0:10:04]}  cxd4 {[%clk 0:09:48]} 8. Nxd4 {[%clk 0:10:04]}  Bd6 {[%clk 0:09:49]} 9. Bb2 {[%clk 0:10:00]}  O-O {[%clk 0:09:23]} 10. Nd2 {[%clk 0:09:29]}  e5 {[%clk 0:09:23]} 11. N4f3 {[%clk 0:09:29]}  Nc6 {[%clk 0:09:24]} 12. Qb1 {[%clk 0:09:24]}  Qe7 {[%clk 0:07:47]} 13. Ne4 {[%clk 0:08:30]}  Nxe4 {[%clk 0:07:26]} 14. Qxe4 {[%clk 0:08:30]}  Be6 {[%clk 0:07:27]} 15. Rfd1 {[%clk 0:07:42]}  Bxc4 {[%clk 0:06:15]} 16. bxc4 {[%clk 0:07:41]}  Ba3 {[%clk 0:05:32]} 17. Bxa3 {[%clk 0:07:16]}  Qxa3 {[%clk 0:05:34]} 18. Ng5 {[%clk 0:07:05]}  g6 {[%clk 0:05:35]} 19. Qh4 {[%clk 0:07:06]}  h5 {[%clk 0:05:35]} 20. g4 {[%clk 0:07:07]}  f6 {[%clk 0:04:24]} 21. Ne6 {[%clk 0:07:06]}  Rf7 {[%clk 0:04:20]} 22. gxh5 {[%clk 0:07:05]}  g5 {[%clk 0:04:21]} 23. Qe4 {[%clk 0:06:48]}  Qe7 {[%clk 0:04:18]} 24. Rd6 {[%clk 0:05:55]}  Kh8 {[%clk 0:03:47]} 25. Rad1 {[%clk 0:05:25]}  Nd4 {[%clk 0:03:33]} 26. Qd5 {[%clk 0:03:39]}  Ne2+ {[%clk 0:03:21]} 27. Kg2 {[%clk 0:03:29]}  Nc3 {[%clk 0:03:22]} 28. Rd8+ {[%clk 0:03:26]}  Kh7 {[%clk 0:02:11]} 29. Qd3+ {[%clk 0:02:12]}  e4 {[%clk 0:02:10]} 30. Qd6 {[%clk 0:01:42]}  Rxd8 {[%clk 0:01:34]} 31. Nxd8 {[%clk 0:01:29]}  Nxd1 {[%clk 0:01:26]} 32. Nxf7 {[%clk 0:01:30]}  Nxe3+ {[%clk 0:01:25]} 33. fxe3 {[%clk 0:01:31]}  Qxf7 {[%clk 0:01:27]} 34. Qd5 {[%clk 0:01:28]}  Qxh5 {[%clk 0:01:23]} 35. Qxe4+ {[%clk 0:01:28]}  Kh6 {[%clk 0:01:23]} 36. Kg3 {[%clk 0:01:25]}  Qe2 {[%clk 0:01:17]} 37. Qe7 {[%clk 0:01:10]}  Kg6 {[%clk 0:00:51]} 38. Qe8+ {[%clk 0:01:11]}  Kg7 {[%clk 0:00:48]} 39. Qe7+ {[%clk 0:01:11]}  Kg6 {[%clk 0:00:49]} 40. Qe4+ {[%clk 0:01:12]}  Kh6 {[%clk 0:00:50]} 41. a4 {[%clk 0:01:07]}  Qe1+ {[%clk 0:00:33]} 42. Kg4 {[%clk 0:01:08]}  Qf2 {[%clk 0:00:27]} 43. Kh3 {[%clk 0:00:58]}  f5 {[%clk 0:00:15]} 44. Qe6+ {[%clk 0:00:57]}  Kh5 {[%clk 0:00:15]} 45. Qf7+ {[%clk 0:00:56]}  Kh6 {[%clk 0:00:16]} 46. Qf6+ {[%clk 0:00:56]}  Kh5 {[%clk 0:00:17]} 47. Qf7+ {[%clk 0:00:52]}  Kh6 {[%clk 0:00:18]} 48. Qf6+ {[%clk 0:00:40]}  Kh5 {[%clk 0:00:19]} 49. Qf7+ {[%clk 0:00:41]} 1/2-1/2


[Site "Internet"]